Cogmind - Beta 16 @@@ ROGUE MODE // 2025.11.20 @ 18:11:12 Player: Mozco Result: Destroyed by D-53 Grenadier with Mini Grenade Launcher Performance ------------- Evolutions (0) 0 Regions Visited (2) 400 Robots Destroyed (31) 155 Value Destroyed (710) 710 Prototype IDs (2) 40 Alien Tech Used (0) 0 Bonus (2) 2 TOTAL SCORE: 1307 Bonus ------- High Alert Combat Kills 2 Cogmind --------- Core Integrity 0/250 Matter 208/300 Energy 89/100 System Corruption 2% Temperature Cool (25) Movement Core (500) Ox9 Location -10/Mines Parts ------- > --- POWER (1) -------- (None) > --- PROPULSION (2) --- (None) > --- UTILITY (2) ------ Small Storage Unit Large Storage Unit > --- WEAPON (2) ------- EM Pulse Gun Grenade Launcher > --- INVENTORY (15) --- Ion Engine Light Nuclear Core Assault Rifle Peak State ------------ > --- POWER ------------ Ion Engine > --- PROPULSION ------- Light Treads Light Treads > --- UTILITY ---------- Improved Heat Sink Small Storage Unit > --- WEAPON ----------- EM Pulse Gun Light Cannon > --- INVENTORY -------- Ion Engine EM Pulse Gun EM Pulse Gun EM Pulse Gun Assault Rifle [Rating: 9] Favorites ----------- Power Ion Engine Engine Ion Engine Propulsion Light Treads Treads Light Treads Utility Small Storage Unit Device Improved Heat Sink Storage Small Storage Unit Weapon EM Pulse Gun Energy Gun EM Pulse Gun Ballistic Cannon Light Cannon Launcher Grenade Launcher Build | -11 -10 -10 ------- Run | Yrd Mat Min Slots Evolved . | . . . Power . | . . . Propulsion . | . . . Utility . | . . . Weapon . | . . . Parts Attached 13 | 4 8 1 Power 2 | 1 1 . Engine 2 | 1 1 . Core . | . . . Reactor . | . . . Propulsion 2 | 2 . . Treads 2 | 2 . . Leg . | . . . Wheel . | . . . Hover . | . . . Flight . | . . . Utility 3 | 1 2 . Device 1 | . 1 . Storage 2 | 1 1 . Processor . | . . . Hackware . | . . . Protection . | . . . Artifact . | . . . Weapon 6 | . 5 1 Energy Gun 4 | . 3 1 Energy Cannon . | . . . Ballistic Gun . | . . . Ballistic Cannon 1 | . 1 . Launcher 1 | . 1 . Special Weapon . | . . . Impact Weapon . | . . . Slashing Weapon . | . . . Piercing Weapon . | . . . Special Melee Weapon . | . . . Unidentified Prototypes . | . . . Parts Lost 9 | . 4 5 Power 2 | . 1 1 Propulsion 2 | . 1 1 Utility 1 | . . 1 Weapon 4 | . 2 2 Highest Loss Streak 6 | . 2 6 To Critical Strikes . | . . . Average Backups 4 | 1 4 5 Power 1 | . 1 2 Propulsion . | . . . Utility . | . . . Weapon 2 | . 3 2 Tool/Special . | . . . Unused Backups 3 | . . 3 Power 2 | . . 2 Propulsion . | . . . Utility . | . . . Weapon 1 | . . 1 Tool/Special . | . . . Average Slot Usage (%) 87 | . 88 70 Engine 13 | . 13 14 Treads 27 | . 27 14 Device 6 | . 6 4 Storage 14 | . 14 18 Energy Gun 13 | . 13 14 Ballistic Cannon 10 | . 11 . Peak Build Rating 9 | 4 9 8 Average Rating 6 | 3 7 5 On Entrance 4 | . 4 8 Avg Prop Armor Cover (%) . | . . . Naked Turns . | . . . Heaviest Build 30 | 10 30 30 Greatest Support 40 | 40 40 20 Greatest Overweight (x) 1 | . 1 1 Average Overweight (x) . | . . 1 Largest Inventory Capacity 15 | 8 15 15 Average Capacity 8 | 6 8 15 Most Carried 7 | 3 7 6 Average Carried 4 | 1 4 4 Final Capacity 15 | 8 15 15 Final Carried 6 | 3 6 3 Class Distribution -------------------- 100% | Mutant Dominant Class ---------------- Mutant | -10/Materials Mutant | -10/Mines Resources | -11 -10 -10 ----------- Run | Yrd Mat Min Matter Collected 529 | 234 295 . Remotely . | . . . Salvage Created 758 | . 758 . Parts 60 | . 58 2 Haulers Intercepted 1 | . 1 . Recyclers Shooed 2 | . 2 . Parts Field Recycled . | . . . Retrieved Matter . | . . . Parts Self-Destructed . | . . . Prevented . | . . . Parts Restored . | . . . Kills | -11 -10 -10 ------- Run | Yrd Mat Min Combat Hostiles Destroyed 20 | . 20 . Guns 6 | . 6 . Cannons 9 | . 9 . AOE 5 | . 5 . Classes Destroyed 6 | . 5 1 Worker 6 | . 6 . Tunneler 1 | . . 1 Hauler 1 | . 1 . Watcher 3 | . 3 . Swarmer 3 | . 3 . Grunt 17 | . 17 . Best Kill Streak 13 | . 13 1 Combat Bots Only 8 | . 8 . Max Kills in Single Turn 3 | . 3 1 Gunslinging 1 | . 1 . Exploded 2 | . 2 . Melee . | . . . Uniques/NPCs Destroyed . | . . . Combat | -11 -10 -10 -------- Run | Yrd Mat Min Hostile Shots Fired 102 | . 82 20 Missed 28 | . 23 5 Hits 74 | . 59 15 Projectile 74 | . 59 15 AOE 7 | . . 7 Critical Strikes 3 | . 3 . Part Disruptions 1 | . . 1 Damage Taken 1163 | . 744 419 Core 250 | . 137 113 Absorbed by Shields . | . . . Core Remaining (%) 100 | 100 . . Volleys Fired 54 | . 49 5 Largest 2 | . 2 1 Hottest 80 | . 80 40 Shots Fired 93 | . 88 5 Gun 48 | . 43 5 Cannon 34 | . 34 . Launcher 11 | . 11 . Special . | . . . Kinetic 34 | . 34 . Thermal . | . . . Explosive 11 | . 11 . Electromagnetic 48 | . 43 5 Robot Hit Streak 18 | . 18 2 Robot Miss Streak 3 | . 3 2 Penetration Max . | . . . Secondary Targets 1 | . 1 . Max Gunslinging Chain 1 | . 1 . Shots Hit Robots 56 | . 53 3 Core Hits 39 | . 38 1 Critical Kills . | . . . Critical Parts Destroyed . | . . . Critical Strikes 4 | . 4 . Blast 4 | . 4 . Melee Attacks . | . . . Impact . | . . . Slashing . | . . . Piercing . | . . . Sneak Attacks . | . . . Combat Hostiles . | . . . Follow-up Attacks . | . . . Damage Inflicted 1441 | . 1396 45 Guns 348 | . 303 45 Cannons 458 | . 458 . Explosions 635 | . 635 . Melee . | . . . Ramming . | . . . Kinetic 458 | . 458 . Thermal . | . . . Explosive 635 | . 635 . Electromagnetic 348 | . 303 45 Impact . | . . . Slashing . | . . . Piercing . | . . . Highest Corruption 2 | . 2 2 Average Corruption 1 | . 1 2 Corruption Purged . | . . . Corruption Blocked . | . . . Effects 5 | . 5 . Matter Fused 1 | . 1 . Heat Flow Errors 1 | . 1 . Energy Discharges 1 | . 1 . Data Loss (minor) 1 | . 1 . Misfires 1 | . 1 . Overload Shots . | . . . Overflow Damage 11 | . 11 . Projectiles . | . . . Explosions 11 | . 11 . Melee . | . . . Knockbacks 4 | . 4 . Impact . | . . . Kinetic 3 | . 3 . Secondary 1 | . 1 . Self-Inflicted Damage 55 | . 55 . Shots 3 | . 3 . Rammed . | . . . Targets Rammed . | . . . Kicked . | . . . Crushed . | . . . Highest Temperature 361 | . 361 35 Average Temperature 78 | . 81 25 Received Heat Transfer 412 | . 372 40 Effects 1 | . 1 . Matter Decay 1 | . 1 . Siege Activations . | . . . Martial Activations . | . . . Shielding Activations . | . . . Robots Disrupted . | . . . Combat Hostiles . | . . . Robots Corrupted . | . . . Combat Hostiles . | . . . Parts Fried 1 | . 1 . Impact Corruptions . | . . . Robots Melted . | . . . Combat Hostiles . | . . . Parts Melted . | . . . Heat Transferred . | . . . Parts Sabotaged . | . . . Parts Stolen . | . . . Parts Stripped . | . . . Power Chain Reactions . | . . . Alert | -11 -10 -10 ------- Run | Yrd Mat Min Maximum Alert Level 2 | . 2 . Low Security (%) 75 | 100 71 100 Level 1 24 | . 28 . Level 2 . | . . . Level 3 . | . . . Level 4 . | . . . Level 5 . | . . . High Security . | . . . Max Security . | . . . Peak Influence 396 | . 396 147 Initial 147 | . . 147 Average 112 | . 126 122 Influence Increases 632 | . 627 5 Destroy 0b10 Robot/C 400 | . 400 . Destroy 0b10 Robot/NC 55 | . 50 5 Destroy Leader 88 | . 88 . Successful Hack 21 | . 21 . Select Force Hacks 30 | . 30 . Destroy Structure 38 | . 38 . Influence Decreases 540 | . 249 291 Entered New Map 231 | . . 231 Time Decay 219 | . 209 10 Lost Part 90 | . 40 50 Squads Dispatched 6 | . 6 . Investigation 5 | . 5 . Extermination . | . . . Reinforcement 1 | . 1 . Assault . | . . . Garrison . | . . . Intercept . | . . . Searches Triggered . | . . . Construction Impeded . | . . . Haulers Reinforced . | . . . Active Scanning Responses . | . . . Cargo Convoy Interrupts . | . . . Stealth | -11 -10 -10 --------- Run | Yrd Mat Min Distress Signals 1 | . 1 . Communications Jammed . | . . . Distress Signals . | . . . Times Spotted 50 | . 28 22 Peak Tracking Total 21 | . 4 21 Tactical Retreats . | . . . Traps | -11 -10 -10 ------- Run | Yrd Mat Min Traps Triggered 3 | . 3 . Indirectly . | . . . Trap Hack Attempts . | . . . Triggered . | . . . Disarmed . | . . . Reprogrammed . | . . . Reused . | . . . Traps Extracted . | . . . Installed . | . . . Triggered . | . . . Machines | -11 -10 -10 ---------- Run | Yrd Mat Min Machines Disabled 1 | . 1 . Max in Single Turn 1 | . 1 . Machines Repaired . | . . . Machines Dismantled . | . . . Machines Sabotaged . | . . . Overloaded Fab Kills . | . . . Hacking | -11 -10 -10 --------- Run | Yrd Mat Min Machines Accessed 6 | . 6 . Terminals 5 | . 5 . Fabricators . | . . . Repair Stations . | . . . Recycling Units 1 | . 1 . Scanalyzers . | . . . Garrison Access . | . . . Total Hacks 20 | . 20 . Successful 9 | . 9 . Failed 11 | . 11 . Catastrophic 1 | . 1 . Database Lockouts . | . . . Manual 17 | . 17 . Terminals 19 | . 19 . Fabricators . | . . . Repair Stations . | . . . Recycling Units 1 | . 1 . Scanalyzers . | . . . Garrison Access . | . . . Terminal Hacks 6 | . 6 . Part Schematic 3 | . 3 . Robot Analysis 2 | . 2 . Prototype ID Bank 1 | . 1 . Fabricator Hacks . | . . . Repair Station Hacks . | . . . Recycling Unit Hacks . | . . . Scanalyzer . | . . . Garrison Access Hacks . | . . . Unauthorized Hacks 3 | . 3 . Terminals 2 | . 2 . Botnet 2 | . 2 . Fabricators . | . . . Repair Stations . | . . . Recycling Units 1 | . 1 . Tunnel 1 | . 1 . Scanalyzers . | . . . Garrison Access . | . . . Data Cores Recovered . | . . . Used . | . . . Hacking Detections 5 | . 5 . Full Trace Events 3 | . 3 . Feedback Events . | . . . Feedback Blocked . | . . . Robot Schematics Acquired . | . . . Robots Built . | . . . Authchips . | . . . Time . | . . . Total Robot Build Rating . | . . . Part Schematics Acquired 3 | . 3 . Parts Built . | . . . Authchips . | . . . Time . | . . . Total Part Build Rating . | . . . Part Studies Acquired . | . . . Parts Repaired . | . . . Time . | . . . Parts Recycled . | . . . Recycled Matter . | . . . Retrieved Matter . | . . . Retrieved Components . | . . . Parts Scanalyzed . | . . . Part Schematics Acquired . | . . . Parts Damaged . | . . . Bothacking | -11 -10 -10 ------------ Run | Yrd Mat Min Used RIF Installer . | . . . Robots Hacked . | . . . Non-combat . | . . . Combat . | . . . Robot Hacks Applied . | . . . Relay Couplers Released . | . . . Fabnet Peak Effective % . | . . . Robots Rewired . | . . . Allies Hacked . | . . . Hacks Repelled . | . . . Allies | -11 -10 -10 -------- Run | Yrd Mat Min Total Allies . | . . . Largest Group . | . . . Highest-Rated Group . | . . . Highest-Rated Ally . | . . . Total Orders . | . . . Ally Attacks . | . . . Total Damage . | . . . Kills . | . . . Allies Corrupted . | . . . Allies Melted . | . . . Intel | -11 -10 -10 ------- Run | Yrd Mat Min Active Infowar (turns) . | . . . Robot Analysis Total 2 | . 2 . Derelict Logs Recovered . | . . . Drone Launches . | . . . Drone Recoveries . | . . . Exploration | -11 -10 -10 ------------- Run | Yrd Mat Min Turns Passed 736 | 77 635 24 Spaces Moved 351 | 46 300 5 Core 4 | 4 . . Treads 347 | 42 300 5 Legs . | . . . Wheels . | . . . Hover . | . . . Flight . | . . . Fastest Speed 50 | 50 160 240 Average Speed 160 | 150 161 240 Slowest Speed 240 | 160 240 240 Overloaded Moves . | . . . Propulsion Burnouts . | . . . Robots Hopped . | . . . Potential Cave-ins . | . . . Cave-ins Triggered . | . . . Exploration Rate (%) 23 | 4 60 6 Regions Visited 2 Branch Regions 1 Pre-discovered Areas 1 | . 1 . Known Exits Taken . | . . . Unknown Exits Taken 2 | 1 1 . Scrap Searched . | . . . Spaces Dug . | . . . Terrain Destroyed 40 | . 40 . Melee . | . . . Projectile . | . . . AOE 40 | . 40 . Terrain Rammed . | . . . Walls Destroyed . | . . . Machines Disabled . | . . . Actions | -11 -10 -10 --------- Run | Yrd Mat Min Total 428 | 52 363 13 Wait . | . . . Move 349 | 45 299 5 Hop . | . . . Pick Up 9 | 3 6 . Fast Attach 6 | 4 2 . Attach 7 | . 4 3 Detach . | . . . Swap 3 | . 3 . Drop . | . . . Fire 54 | . 49 5 Melee . | . . . Ram . | . . . Kick . | . . . Crush . | . . . Escape Stasis . | . . . Rewire . | . . . Trap . | . . . Miscellaneous . | . . . Route ------- -11/Scrapyard -10/Materials (discovered 2 exits: [*Mat] / [*Min]) -10/Mines History --------- Turn | Location | Event 3 | -11/Scrapyard | Discovered new exit (range 15) 78 | -11/Scrapyard | Entered Materials 214 | -10/Materials | Discovered new exit (range 11) 301 | -10/Materials | Build established: Mutant 419 | -10/Materials | Discovered new exit (range 16) 578 | -10/Materials | Derelicts attacked the area 698 | -10/Materials | Destroyed 8 combat bots 713 | -10/Materials | Entered Mines 714 | -10/Mines | Assembled infested the area 714 | -10/Mines | Core integrity fell below 50% 719 | -10/Mines | Core integrity fell below 20% 720 | -10/Mines | Received a Rocket Launcher from a helpful Derelict 737 | -10/Mines | Destroyed by D-53 Grenadier with Mini Grenade Launcher Last Messages --------------- 00724_ U-05 Engineer lays Concrete. 00725_ U-05 Engineer builds a Wall. 00726_ as-85243 destroyed. 00726_ as-81509 destroyed. 00726_ as-21718 destroyed. 00726_ as-19613 destroyed. 00726_ as-43573 destroyed. 00726_ as-05661 destroyed. 00726_ as-55948 destroyed. 00726_ as-30509 destroyed. 00726_ as-11761 destroyed. 00726_ as-00867 destroyed. 00727_ The unstable cave ceiling collapses. 00728_ as-43636 destroyed. 00729_ D-53 Grenadier destroyed. 00729_ U-05 Engineer destroyed. 00730_ T-07 Excavator destroyed. 00732_ The unstable cave ceiling collapses. 00735_ Ion Engine destroyed. 00737_ Lgt. Treads destroyed. Map ----- +----------------------------------------------------+ | ?????????????????????????????? | | ?????????????????????????????? | | ?????????????????????????????? | | ?????????????????????????????? | | ?????????????????????????????? | | ?????????????????????????????? | | ?????????????????????????????? | | ?????????????????????????????? | | ?????????????????????????????? | | ?????????????????????????????? | | ?????????????????????????????? | | ?????????????????????????????? | | ?????????????????????????????? | | ?????????????????????????????? | | ?????????????????????????????? | | ?????????????###?????????????? | | ????????????# ###???????????? | | ???????????# ???????????? | | ?????????? # ??????????? | | ??????#### #?????????? | | ??##### < ##????????? | | ?## # a ?????????? | | ?# ?????????? | | ?# ] #???????????? | | ?# a #???????????? | | ?# @ ] #???????????? | | ?# %! #????????????? | | # d ##????????????? | | ## **# ##?????????????? | | ?## ### | #??????????????? | | ??##???### ##??????????????? | | ?????????# ##???????????????? | | ????????? % #???????????????? | | ????????? " #???????????????? | | ????????? #???????????????? | | ????????? ???????????????? | | ????????? ???????????????? | | ????????? ??????????????? | | ?????????### #??????????????? | | ????????????###??????????????? | | ?????????????????????????????? | | ?????????????????????????????? | | ?????????????????????????????? | | ?????????????????????????????? | | ?????????????????????????????? | | ?????????????????????????????? | | ?????????????????????????????? | | ?????????????????????????????? | | ?????????????????????????????? | | ?????????????????????????????? | +----------------------------------------------------+ Best States ------------- Heat Dissipation 39 Energy Generation 10 Energy Capacity 250 Matter Stores 300 Matter Capacity 300 Sight Range 16 Terrain Scan Density 10 Evasion (%) 40 Recoil Reduction 2 Item Schematics ----------------- Huge Storage Unit | -10/Materials | Hacked Targeting Computer | -10/Materials | Hacked EM Pulse Gun | -10/Materials | Hacked Robot Schematics ------------------ None Fabricated ------------ Nothing Repaired ---------- Nothing Studied --------- None Alien Tech Used ----------------- None Achievements -------------- None Challenges ------------ None Game ------ Seed GlidesysCoolingAccelerator Manual? 0 Play Time 00:06:45 Cumulative 310.8 hours Start 2025.11.20 @ 18:05:06 End 2025.11.20 @ 18:11:12 Sessions 1 Manual Loads 0 Difficulty Rogue Special Mode None Game No. 323 Rogue 319 Adventurer 3 Explorer 1 Win Type - Total 2 Types 2/0/0/0/0/0/0/0/0/0 Lore% 80 Gallery% 77 Achievement% 63 Wizard Run 0 Options --------- Layout 0 ASCII 0 Keyboard 0 Movement Mouse Keybinds 0 Fullscreen 2 Font 18/SmallcapsGlow Map View 76x50 Zoom Use 0% Tactical HUD 1 Map Filters NONE Filters NONE Steam 1 RUN: b3f1830c-ec22-4f93-a927-7d5e6ba82396